Cogmind - Beta 15 @@@ ROGUE MODE // 2025.10.12 @ 01:20:23 Player: souux Result: Destroyed by H-77 Assassin with Coil Gun Performance ------------- Evolutions (7) 3500 Regions Visited (16) 3200 Robots Destroyed (102) 510 Value Destroyed (3638) 3638 Prototype IDs (16) 320 Alien Tech Used (0) 0 Bonus (1965) 1965 TOTAL SCORE: 13133 Bonus ------- High Alert Combat Kills 50 Follower Combat Kills 1165 Met Warlord at Base 500 MAIN.C Attacked Warlord 500 Friendly Fire -250 Cogmind --------- Core Integrity 0/1300 Matter 240/300 Energy 20/100 System Corruption 0% Temperature Cool (0) Movement Core (450) Ox8 Location -3/Research Parts ------- > --- POWER (2) -------- (None) > --- PROPULSION (6) --- (None) > --- UTILITY (10) ----- Layered Light Armor Plating Component Analysis Suite > --- WEAPON (3) ------- Vortex Catalyst Activator > --- INVENTORY (5) ---- Compact Particle Reactor High-capacity Matter Pod (200) Power Maul Peak State ------------ > --- POWER ------------ Enhanced Nuclear Core > --- PROPULSION ------- VTOL Module VTOL Module VTOL Module Improved VTOL Module Improved Cesium-ion Thruster Cooled VTOL Module > --- UTILITY ---------- Improved Cooling System Makeshift Trap Scanner Seismic Detector Improved Utility Shielding Improved Light Armor Plating Hacking Suite Improved System Shield > --- WEAPON ----------- Vortex Catalyst Activator Power Maul > --- INVENTORY -------- Makeshift Transmission Jammer ECM Suite Component Analysis Suite [Rating: 73] Favorites ----------- Power Enhanced Nuclear Core Engine Light Ion Engine Power Core Enhanced Nuclear Core Reactor Compact Particle Reactor Propulsion VTOL Module Treads Improved Medium Treads Wheel Armored Wheel Flight Unit VTOL Module Utility Hacking Suite Device Seismic Detector Storage High-capacity Storage Unit Hackware Hacking Suite Protection Medium Reactive Plating Weapon Gatling Laser Energy Gun Gatling Laser Ballistic Gun Precision Assault Rifle Launcher Improved Grenade Launcher Special Weapon Improved Plasma Cutter Impact Weapon Power Maul Build | -11 -10 -9 -8 -7 -7 -6 -6 -5 -5 -5 -5 -4 -4 -4 -4 -3 ------- Run | Yrd Mat Mat Mat Fac Sto Fac Ext Fac Upp Upp War Pro Fac Upp Upp Res Slots Evolved 14 | . . 2 2 2 . 2 . 2 . . . . 2 . . 2 Power 1 | . . . . . . . . . . . . . 1 . . . Propulsion 4 | . . 1 1 . . . . 2 . . . . . . . . Utility 8 | . . . 1 2 . 2 . . . . . . 1 . . 2 Weapon 1 | . . 1 . . . . . . . . . . . . . . Parts Attached 99 | 7 8 12 14 5 13 5 13 9 . 2 4 . . 3 1 3 Power 10 | 1 1 2 1 1 1 . 1 . . . 1 . . . . 1 Engine 5 | 1 1 2 . . . . . . . . 1 . . . . . Core 4 | . . . 1 1 1 . 1 . . . . . . . . . Reactor 1 | . . . . . . . . . . . . . . . . 1 Propulsion 26 | 2 1 5 3 1 3 . 4 6 . . . . . . 1 . Treads 4 | . . . . . . . 4 . . . . . . . . . Leg . | . . . . . . . . . . . . . . . . . Wheel 15 | 2 1 5 3 1 3 . . . . . . . . . . . Hover . | . . . . . . . . . . . . . . . . . Flight 7 | . . . . . . . . 6 . . . . . . 1 . Utility 34 | 2 3 1 3 2 2 3 7 3 . 1 2 . . 3 . 2 Device 17 | 1 1 . 1 2 1 1 1 3 . 1 1 . . 3 . 1 Storage 3 | 1 2 . . . . . . . . . . . . . . . Processor . | . . . . . . . . . . . . . . . . . Hackware 6 | . . . . . . . 5 . . . 1 . . . . . Protection 8 | . . 1 2 . 1 2 1 . . . . . . . . 1 Artifact . | . . . . . . . . . . . . . . . . . Weapon 29 | 2 3 4 7 1 7 2 1 . . 1 1 . . . . . Energy Gun 9 | 1 1 . 4 1 2 . . . . . . . . . . . Energy Cannon . | . . . . . . . . . . . . . . . . . Ballistic Gun 15 | 1 1 4 3 . 4 2 . . . . . . . . . . Ballistic Cannon . | . . . . . . . . . . . . . . . . . Launcher 3 | . 1 . . . . . 1 . . . 1 . . . . . Special Weapon 1 | . . . . . . . . . . 1 . . . . . . Impact Weapon 1 | . . . . . 1 . . . . . . . . . . . Slashing Weapon . | . . . . . . . . . . . . . . . . . Piercing Weapon . | . . . . . . . . . . . . . . . . . Special Melee Weapon . | . . . . . . . . . . . . . . . . . Unidentified Prototypes 8 | . . 2 1 . 1 2 . . . . 1 . . . . 1 Parts Lost 40 | . 5 5 3 4 2 . 3 . . 1 . . 6 5 . 6 Power 4 | . 1 1 . 1 . . . . . . . . 1 . . . Propulsion 15 | . 1 3 3 1 . . 1 . . . . . 2 2 . 2 Utility 14 | . 1 . . 1 1 . 2 . . . . . 2 3 . 4 Weapon 7 | . 2 1 . 1 1 . . . . 1 . . 1 . . . Highest Loss Streak 6 | . 2 3 2 1 1 . 1 . . 1 . . 6 5 . 4 To Critical Strikes 1 | . . . . . . . . . . . . . . . . 1 Average Backups 14 | 6 14 19 19 16 19 19 19 8 5 5 4 4 4 3 4 3 Power 1 | 1 1 1 3 3 2 1 1 1 1 1 . . . . . . Propulsion 3 | 3 6 7 3 . 1 5 6 . . . . . . . . . Utility 7 | . 3 8 10 10 12 10 10 6 4 4 3 2 3 2 2 1 Weapon 1 | 1 2 1 2 3 3 2 2 . . . 1 1 1 1 2 1 Tool/Special . | . . . . . . . . . . . . . . . . . Unused Backups 27 | 2 2 2 5 1 3 1 7 2 . . 1 . . . . 1 Power 4 | . . . 1 . . 1 1 1 . . . . . . . . Propulsion 8 | 2 2 1 . . . . 3 . . . . . . . . . Utility 11 | . . 1 3 . 1 . 3 1 . . 1 . . . . 1 Weapon 4 | . . . 1 1 2 . . . . . . . . . . . Tool/Special . | . . . . . . . . . . . . . . . . . Average Slot Usage (%) 91 | . 98 99 99 98 94 89 95 93 94 93 88 88 80 31 30 17 Engine 3 | . 14 11 . . . . . . . . 4 5 4 . . . Core 4 | . . . 8 6 7 6 6 5 5 5 . . . . . . Treads 3 | . . . . . . . 13 . . . . . . . . . Wheel 14 | . 27 32 35 29 25 20 8 . . . . . . . . . Flight 9 | . . . . . . . . 33 35 35 35 35 29 6 9 4 Device 14 | . 13 8 9 22 23 20 10 5 11 16 27 29 24 16 15 9 Storage 6 | . 14 11 9 7 7 6 6 4 . . . . . . . . Hackware 9 | . . . . . . . 22 22 17 11 6 11 10 6 5 2 Protection 5 | . . 2 8 6 7 16 5 5 10 11 5 . . . . . Energy Gun 6 | . 11 10 9 11 11 6 5 . . . . . . . . . Ballistic Gun 9 | . 16 21 17 10 9 13 13 . . . . . . . . . Impact Weapon 1 | . . . . . . . . 4 5 5 . . 5 1 . . Peak Build Rating 73 | 8 9 14 29 37 46 56 65 66 58 61 73 72 72 54 34 30 Average Rating 40 | 4 8 12 26 34 40 51 60 53 55 60 60 68 69 27 29 18 On Entrance 39 | . 8 9 14 29 35 46 56 64 56 55 61 68 72 45 23 30 Naked Turns . | . . . . . . . . . . . . . . . . . Heaviest Build 106 | 13 48 52 78 81 83 106 106 81 25 26 32 27 27 12 5 5 Greatest Support 110 | 32 32 36 52 48 56 52 110 110 28 28 28 28 28 15 12 12 Greatest Overweight (x) 20 | . 1 2 2 2 2 2 20 2 . . 1 . . 1 1 1 Average Overweight (x) . | . . 1 1 1 1 1 1 1 . . . . . . . . Largest Inventory Capacity 20 | 8 20 20 20 20 20 20 20 20 5 5 5 5 5 5 5 5 Average Capacity 16 | 7 17 20 20 20 20 20 20 18 5 5 5 5 5 5 5 5 Most Carried 20 | 8 20 20 20 20 20 20 20 17 5 5 5 5 5 5 5 5 Average Carried 14 | 6 14 19 19 16 19 19 19 7 5 5 4 4 5 4 4 4 Final Capacity 20 | 8 20 20 20 20 20 20 20 5 5 5 5 5 5 5 5 5 Final Carried 20 | 8 20 18 17 20 20 20 17 5 5 5 5 5 5 5 5 3 Class Distribution -------------------- 20% | Mutant 17% | Hacker-Tank 13% | Tank 12% | Scavenger-Sprinter 9% | Scavenger-Tank 9% | Hacker-Mutant 4% | Hacker-Sprinter 4% | Gunner 3% | Commander-Tank 3% | Hacker-Gunner Dominant Class ---------------- Mutant | -10/Materials Gunner | -9/Materials Scavenger-Tank | -8/Materials Tank | -7/Factory Commander-Tank | -7/Storage Tank | -6/Factory Hacker-Tank | -6/Extension Hacker-Mutant | -5/Factory Scavenger-Sprinter | -5/Upper Caves Scavenger-Sprinter | -5/Upper Caves Scavenger-Sprinter | -5/Warlord Hacker-Sprinter | -4/Proximity Caves Hacker-Sprinter | -4/Factory Mutant | -4/Upper Caves Mutant | -4/Upper Caves Mutant | -3/Research Resources | -11 -10 -9 -8 -7 -7 -6 -6 -5 -5 -5 -5 -4 -4 -4 -4 -3 ----------- Run | Yrd Mat Mat Mat Fac Sto Fac Ext Fac Upp Upp War Pro Fac Upp Upp Res Matter Collected 2933 | 306 285 439 365 212 330 47 458 133 113 45 74 96 . 20 10 . Remotely . | . . . . . . . . . . . . . . . . . Salvage Created 4058 | 131 366 465 775 559 756 64 811 . . . . . . . . 131 Parts 213 | 8 35 27 44 20 34 3 41 . . . . . . . . 1 Haulers Intercepted . | . . . . . . . . . . . . . . . . . Recyclers Shooed 4 | . 2 1 1 . . . . . . . . . . . . . Parts Field Recycled . | . . . . . . . . . . . . . . . . . Retrieved Matter . | . . . . . . . . . . . . . . . . . Parts Self-Destructed 3 | . . . . . . . . . . . . . . 3 . . Prevented 2 | . . . . . . . . . . . . . . . 2 . Kills | -11 -10 -9 -8 -7 -7 -6 -6 -5 -5 -5 -5 -4 -4 -4 -4 -3 ------- Run | Yrd Mat Mat Mat Fac Sto Fac Ext Fac Upp Upp War Pro Fac Upp Upp Res Combat Hostiles Destroyed 90 | . 14 12 18 11 16 3 11 . . . . . . . . 5 Guns 78 | . 11 12 15 11 15 3 11 . . . . . . . . . AOE 11 | . 3 . 3 . . . . . . . . . . . . 5 Classes Destroyed 14 | 2 3 2 2 1 1 . 2 . . . . . . . . 1 Worker 1 | . . . . . . . 1 . . . . . . . . . Builder 1 | . . . 1 . . . . . . . . . . . . . Tunneler 3 | 2 . . . 1 . . . . . . . . . . . . Recycler 4 | 1 . . 1 . 1 . 1 . . . . . . . . . Operator 3 | . 1 . 1 . 1 . . . . . . . . . . . Drone 1 | . . . . . . . . . . . . . . . . 1 Swarmer 25 | . 8 4 4 . 5 3 1 . . . . . . . . . Cutter 2 | . . . 2 . . . . . . . . . . . . . Grunt 34 | . 6 4 7 8 6 . 3 . . . . . . . . . Brawler 1 | . . . . 1 . . . . . . . . . . . . Duelist 1 | . . 1 . . . . . . . . . . . . . . Sentry 20 | . . 3 5 2 4 . 6 . . . . . . . . . Hunter 5 | . . . . . . . 1 . . . . . . . . 4 Programmer 1 | . . . . . 1 . . . . . . . . . . . Butcher 1 | . . . . . . . 1 . . . . . . . . . Best Kill Streak 9 | 2 3 3 6 9 3 3 4 . . . . . . . . 5 Combat Bots Only 6 | . 3 3 6 4 3 3 4 . . . . . . . . 5 Max Kills in Single Turn 3 | 1 3 1 2 2 1 1 2 . . . . . . . . 3 Gunslinging 1 | . 1 . . 1 . . . . . . . . . . . . Exploded 3 | . 3 . 2 . . . . . . . . . . . . 3 Melee . | . . . . . . . . . . . . . . . . . Uniques/NPCs Destroyed . | . . . . . . . . . . . . . . . . . Combat | -11 -10 -9 -8 -7 -7 -6 -6 -5 -5 -5 -5 -4 -4 -4 -4 -3 -------- Run | Yrd Mat Mat Mat Fac Sto Fac Ext Fac Upp Upp War Pro Fac Upp Upp Res Hostile Shots Fired 833 | . 67 68 76 96 90 6 120 4 11 12 . 9 44 63 . 167 Missed 294 | . 23 20 21 30 27 2 41 1 6 6 . 5 19 29 . 64 Hits 539 | . 44 48 55 66 63 4 79 3 5 6 . 4 25 34 . 103 Melee 8 | . . 3 3 2 . . . . . . . . . . . . Projectile 531 | . 44 45 52 64 63 4 79 3 5 6 . 4 25 34 . 103 Critical Strikes 16 | . 1 3 4 . . . 1 . 1 . . . . 2 . 4 Damage Taken 7083 | . 442 607 875 739 607 42 548 56 104 105 . 60 522 551 . 1825 Core 2208 | . 104 90 113 89 23 . 31 19 18 . . 46 69 291 . 1315 Absorbed by Shields 268 | . . . . . . . 268 . . . . . . . . . Ignored by Resistances 329 | . . . 51 40 97 21 120 . . . . . . . . . Regen/Repaired (Parts) 11 | . . . . . . . . . . . 11 . . . . . Core Remaining (%) 81 | 100 58 77 79 . 84 . 96 . . . . 91 . . 68 . Volleys Fired 229 | 12 36 40 44 29 35 3 26 1 . . . . . . . 3 Largest 3 | 2 2 3 3 3 3 3 3 1 . . . . . . . 1 Hottest 208 | 60 70 93 111 151 208 133 123 36 . . . . . . . 20 Shots Fired 606 | 16 70 120 125 87 101 9 74 1 . . . . . . . 3 Gun 597 | 16 69 120 123 87 101 9 72 . . . . . . . . . Cannon . | . . . . . . . . . . . . . . . . . Launcher 9 | . 1 . 2 . . . 2 1 . . . . . . . 3 Special . | . . . . . . . . . . . . . . . . . Kinetic 358 | 12 48 80 82 39 43 6 48 . . . . . . . . . Thermal 222 | . 8 40 41 48 58 3 24 . . . . . . . . . Explosive 6 | . 1 . 2 . . . 2 1 . . . . . . . . Electromagnetic 17 | 4 13 . . . . . . . . . . . . . . . Entropic 3 | . . . . . . . . . . . . . . . . 3 Robot Hit Streak 25 | 12 12 25 15 13 8 4 10 . . . . . . . . 6 Robot Miss Streak 11 | 1 2 2 3 2 11 4 3 . . . . . . . . . Penetration Max . | . . . . . . . . . . . . . . . . . Secondary Targets 14 | . 2 . 2 2 3 1 4 . . . . . . . . . Max Gunslinging Chain 1 | . 1 . 1 1 1 1 1 . . . . . . . . . Shots Hit Robots 433 | 14 45 97 88 61 65 5 56 . . . . . . 1 . 1 Core Hits 215 | 4 21 26 38 28 45 7 37 . . . . . . . . 9 Critical Kills . | . . . . . . . . . . . . . . . . . Critical Parts Destroyed 2 | . . 1 . . . . 1 . . . . . . . . . Critical Strikes 8 | . 1 3 2 1 . . 1 . . . . . . . . . Burn 6 | . 1 2 2 1 . . . . . . . . . . . . Destroy 2 | . . 1 . . . . 1 . . . . . . . . . Melee Attacks 8 | . . . . . 3 . 1 2 . . . . . 1 1 . Impact 8 | . . . . . 3 . 1 2 . . . . . 1 1 . Slashing . | . . . . . . . . . . . . . . . . . Piercing . | . . . . . . . . . . . . . . . . . Sneak Attacks . | . . . . . . . . . . . . . . . . . Combat Hostiles . | . . . . . . . . . . . . . . . . . Follow-up Attacks . | . . . . . . . . . . . . . . . . . Damage Inflicted 8948 | 181 718 1053 1507 961 1202 120 1548 21 . . . . . 47 . 1590 Guns 6724 | 181 584 1053 1289 961 1202 120 1334 . . . . . . . . . Cannons . | . . . . . . . . . . . . . . . . . Explosions 2177 | . 134 . 218 . . . 214 21 . . . . . . . 1590 Melee 47 | . . . . . . . . . . . . . . 47 . . Ramming . | . . . . . . . . . . . . . . . . . Kinetic 3564 | 139 420 560 837 398 395 53 762 . . . . . . . . . Thermal 3016 | . 62 493 452 563 807 67 572 . . . . . . . . . Explosive 587 | . 134 . 218 . . . 214 21 . . . . . . . . Electromagnetic 144 | 42 102 . . . . . . . . . . . . . . . Impact 47 | . . . . . . . . . . . . . . 47 . . Slashing . | . . . . . . . . . . . . . . . . . Piercing . | . . . . . . . . . . . . . . . . . Entropic 1590 | . . . . . . . . . . . . . . . . 1590 Highest Corruption 1 | . 1 . . . . . . . . . . . . . . . Average Corruption 1 | . 1 . . . . . . . . . . . . . . . Corruption Purged . | . . . . . . . . . . . . . . . . . Corruption Blocked . | . . . . . . . . . . . . . . . . . Effects 1 | . 1 . . . . . . . . . . . . . . . Matter Fused 1 | . 1 . . . . . . . . . . . . . . . Overload Shots . | . . . . . . . . . . . . . . . . . Overflow Damage 64 | . . . 4 . . . . . . . . . . . . 60 Projectiles . | . . . . . . . . . . . . . . . . . Explosions 64 | . . . 4 . . . . . . . . . . . . 60 Melee . | . . . . . . . . . . . . . . . . . Knockbacks 1 | . . . . . . . . . . . . . . 1 . . Impact 1 | . . . . . . . . . . . . . . 1 . . Kinetic . | . . . . . . . . . . . . . . . . . Secondary . | . . . . . . . . . . . . . . . . . Self-Inflicted Damage 239 | . . . 62 . . . 55 . . . . . . . . 122 Shots 4 | . . . 2 . . . 1 . . . . . . . . 1 Rammed . | . . . . . . . . . . . . . . . . . Targets Rammed . | . . . . . . . . . . . . . . . . . Kicked . | . . . . . . . . . . . . . . . . . Crushed . | . . . . . . . . . . . . . . . . . Highest Temperature 427 | . 54 374 427 164 269 27 171 68 68 . 195 51 39 . . . Average Temperature 81 | . 16 120 115 54 65 15 49 32 38 . 83 22 24 . . . Received Heat Transfer 1727 | . 144 201 396 351 240 . 166 . 54 9 . . 39 82 . 45 Effects 1 | . . . 1 . . . . . . . . . . . . . Shutdowns 1 | . . . 1 . . . . . . . . . . . . . Siege Activations . | . . . . . . . . . . . . . . . . . Martial Activations . | . . . . . . . . . . . . . . . . . Shielding Activations . | . . . . . . . . . . . . . . . . . Robots Disrupted . | . . . . . . . . . . . . . . . . . Combat Hostiles . | . . . . . . . . . . . . . . . . . Robots Corrupted . | . . . . . . . . . . . . . . . . . Combat Hostiles . | . . . . . . . . . . . . . . . . . Parts Fried . | . . . . . . . . . . . . . . . . . Impact Corruptions . | . . . . . . . . . . . . . . . . . Robots Melted 1 | . . . . . 1 . . . . . . . . . . . Combat Hostiles 1 | . . . . . 1 . . . . . . . . . . . Parts Melted 14 | . 1 4 . 2 7 . . . . . . . . . . . Heat Transferred 7705 | . 259 1591 1258 1369 1815 150 1263 . . . . . . . . . Parts Sabotaged . | . . . . . . . . . . . . . . . . . Parts Stolen . | . . . . . . . . . . . . . . . . . Parts Stripped . | . . . . . . . . . . . . . . . . . Power Chain Reactions . | . . . . . . . . . . . . . . . . . Alert | -11 -10 -9 -8 -7 -7 -6 -6 -5 -5 -5 -5 -4 -4 -4 -4 -3 ------- Run | Yrd Mat Mat Mat Fac Sto Fac Ext Fac Upp Upp War Pro Fac Upp Upp Res Maximum Alert Level 2 | . . . 1 1 2 . 2 . . . . . . . . 1 Low Security (%) 80 | 100 100 100 81 86 66 100 51 100 . . . . 100 . . 99 Level 1 16 | . . . 18 13 12 . 46 . . . . . . . . . Level 2 2 | . . . . . 21 . 2 . . . . . . . . . Level 3 . | . . . . . . . . . . . . . . . . . Level 4 . | . . . . . . . . . . . . . . . . . Level 5 . | . . . . . . . . . . . . . . . . . High Security . | . . . . . . . . . . . . . . . . . Max Security . | . . . . . . . . . . . . . . . . . Peak Influence 467 | 10 80 147 351 226 467 197 412 89 . . . . 113 . . 244 Initial 186 | . . . 47 150 80 186 63 89 . . . . 63 . . 15 Average 114 | . 19 69 149 153 176 162 195 11 . . . . 70 . . 6 Influence Increases 5081 | 15 385 347 585 306 878 75 1322 24 300 150 45 120 180 105 . 244 Destroy 0b10 Robot/C 2440 | . 280 240 360 220 500 60 700 . . . . . . . . 80 Destroy 0b10 Robot/NC 85 | 15 5 . 15 5 10 . 30 . . . . . . . . 5 Destroy Leader 514 | . 70 60 100 50 120 10 84 . . . . . . . . 20 Allied During Kill 566 | . . . . . 184 . 382 . . . . . . . . . Successful Hack 34 | . 9 . 5 . . 4 16 . . . . . . . . . Disable Machine 75 | . . 15 . . 45 . 15 . . . . . . . . . Destroy Structure 197 | . 6 2 15 1 4 1 20 24 . . . . . . . 124 Partial Spotted 15 | . . . . . 15 . . . . . . . . . . . Lose Combat Pursuer 1155 | . 15 30 90 30 . . 75 . 300 150 45 120 180 105 . 15 Influence Decreases 4837 | 15 382 237 366 460 644 356 1270 207 179 174 105 57 167 163 31 24 Entered New Map 994 | . . 3 66 182 98 226 68 94 . 24 97 37 37 42 11 9 Time Decay 2674 | 15 352 194 270 238 326 130 513 113 179 140 8 20 70 71 20 15 Lost Part 300 | . 30 40 30 40 20 . 20 . . 10 . . 60 50 . . Lost Ally 420 | . . . . . 200 . 220 . . . . . . . . . Purge Threat 449 | . . . . . . . 449 . . . . . . . . . Squads Dispatched 27 | . 3 . 5 3 6 . 4 4 . . . . . . . 2 Investigation 5 | . 1 . . . 1 . 3 . . . . . . . . . Extermination 4 | . . . . 1 1 . . 2 . . . . . . . . Reinforcement 13 | . 2 . 3 1 2 . 1 2 . . . . . . . 2 Assault . | . . . . . . . . . . . . . . . . . Garrison 5 | . . . 2 1 2 . . . . . . . . . . . Intercept . | . . . . . . . . . . . . . . . . . Searches Triggered . | . . . . . . . . . . . . . . . . . Construction Impeded 2 | . . . . . 1 . 1 . . . . . . . . . Haulers Reinforced . | . . . . . . . . . . . . . . . . . Active Scanning Responses . | . . . . . . . . . . . . . . . . . Cargo Convoy Interrupts . | . . . . . . . . . . . . . . . . . Stealth | -11 -10 -9 -8 -7 -7 -6 -6 -5 -5 -5 -5 -4 -4 -4 -4 -3 --------- Run | Yrd Mat Mat Mat Fac Sto Fac Ext Fac Upp Upp War Pro Fac Upp Upp Res Distress Signals 13 | . 3 2 2 . 1 . 2 . . . 1 . 2 . . . Communications Jammed . | . . . . . . . . . . . . . . . . . Distress Signals . | . . . . . . . . . . . . . . . . . Times Spotted 258 | . 31 21 34 16 29 3 39 1 17 8 10 7 20 12 . 10 Peak Tracking Total 16 | . 5 7 8 6 5 3 7 1 6 7 6 8 16 7 . 8 Tactical Retreats 33 | . 1 2 4 1 . . 4 . 8 3 1 1 4 3 . 1 Traps | -11 -10 -9 -8 -7 -7 -6 -6 -5 -5 -5 -5 -4 -4 -4 -4 -3 ------- Run | Yrd Mat Mat Mat Fac Sto Fac Ext Fac Upp Upp War Pro Fac Upp Upp Res Traps Triggered 10 | . 2 1 1 . 1 . 2 . . . . . 1 . . 2 Indirectly . | . . . . . . . . . . . . . . . . . Trap Hack Attempts . | . . . . . . . . . . . . . . . . . Triggered . | . . . . . . . . . . . . . . . . . Disarmed 1 | . . . . . . . 1 . . . . . . . . . Reprogrammed . | . . . . . . . . . . . . . . . . . Reused . | . . . . . . . . . . . . . . . . . Traps Extracted . | . . . . . . . . . . . . . . . . . Installed . | . . . . . . . . . . . . . . . . . Triggered . | . . . . . . . . . . . . . . . . . Machines | -11 -10 -9 -8 -7 -7 -6 -6 -5 -5 -5 -5 -4 -4 -4 -4 -3 ---------- Run | Yrd Mat Mat Mat Fac Sto Fac Ext Fac Upp Upp War Pro Fac Upp Upp Res Machines Disabled 9 | . . 1 . . 3 . 3 . . . 1 . . . 1 . Max in Single Turn 1 | . . 1 . . 1 . 1 . . . 1 . . . 1 . Garrison Access 1 | . . . . . . . . 1 . . . . . . . . Machines Repaired . | . . . . . . . . . . . . . . . . . Machines Dismantled 1 | . . . . . . . . . . . 1 . . . . . Machines Sabotaged . | . . . . . . . . . . . . . . . . . Overloaded Fab Kills . | . . . . . . . . . . . . . . . . . Hacking | -11 -10 -9 -8 -7 -7 -6 -6 -5 -5 -5 -5 -4 -4 -4 -4 -3 --------- Run | Yrd Mat Mat Mat Fac Sto Fac Ext Fac Upp Upp War Pro Fac Upp Upp Res Machines Accessed 30 | . 2 . 1 1 1 1 17 2 . 1 3 . . . . 1 Terminals 24 | . 2 . 1 1 . 1 17 1 . . . . . . . 1 Fabricators . | . . . . . . . . . . . . . . . . . Repair Stations . | . . . . . . . . . . . . . . . . . Recycling Units . | . . . . . . . . . . . . . . . . . Scanalyzers . | . . . . . . . . . . . . . . . . . Garrison Access 2 | . . . . . 1 . . 1 . . . . . . . . Total Hacks 62 | . 3 . 2 1 1 3 42 4 . 1 4 . . . . 1 Successful 39 | . 3 . 1 1 . 1 26 2 . 1 4 . . . . . Failed 23 | . . . 1 . 1 2 16 2 . . . . . . . 1 Catastrophic 3 | . . . . . 1 . 1 . . . . . . . . 1 Database Lockouts . | . . . . . . . . . . . . . . . . . Manual 29 | . 2 . 2 1 . . 21 2 . . . . . . . 1 Terminals 54 | . 3 . 2 1 . 3 42 2 . . . . . . . 1 Fabricators . | . . . . . . . . . . . . . . . . . Repair Stations . | . . . . . . . . . . . . . . . . . Recycling Units . | . . . . . . . . . . . . . . . . . Scanalyzers . | . . . . . . . . . . . . . . . . . Garrison Access 3 | . . . . . 1 . . 2 . . . . . . . . Terminal Hacks 25 | . 1 . . . . 1 18 . . 1 4 . . . . . Record 2 | . . . . . . . . . . . 2 . . . . . Open Door 13 | . . . . . . 1 9 . . 1 2 . . . . . Alert Level 1 | . . . . . . . 1 . . . . . . . . . Unreport Threat 4 | . . . . . . . 4 . . . . . . . . . Locate Traps 2 | . 1 . . . . . 1 . . . . . . . . . Disarm Traps 2 | . . . . . . . 2 . . . . . . . . . Zone Layout 1 | . . . . . . . 1 . . . . . . . . . Fabricator Hacks . | . . . . . . . . . . . . . . . . . Repair Station Hacks . | . . . . . . . . . . . . . . . . . Recycling Unit Hacks . | . . . . . . . . . . . . . . . . . Scanalyzer . | . . . . . . . . . . . . . . . . . Garrison Access Hacks 1 | . . . . . . . . 1 . . . . . . . . Seal Access 1 | . . . . . . . . 1 . . . . . . . . Unauthorized Hacks 13 | . 2 . 1 1 . . 8 1 . . . . . . . . Terminals 13 | . 2 . 1 1 . . 8 1 . . . . . . . . Botnet 13 | . 2 . 1 1 . . 8 1 . . . . . . . . Fabricators . | . . . . . . . . . . . . . . . . . Repair Stations . | . . . . . . . . . . . . . . . . . Recycling Units . | . . . . . . . . . . . . . . . . . Scanalyzers . | . . . . . . . . . . . . . . . . . Garrison Access . | . . . . . . . . . . . . . . . . . Data Cores Recovered 1 | . . . . . 1 . . . . . . . . . . . Used . | . . . . . . . . . . . . . . . . . Hacking Detections 12 | . 1 . 1 1 1 1 6 . . . . . . . . 1 Full Trace Events 1 | . . . . . . . 1 . . . . . . . . . Feedback Events . | . . . . . . . . . . . . . . . . . Feedback Blocked . | . . . . . . . . . . . . . . . . . Robot Schematics Acquired . | . . . . . . . . . . . . . . . . . Robots Built . | . . . . . . . . . . . . . . . . . Authchips . | . . . . . . . . . . . . . . . . . Time . | . . . . . . . . . . . . . . . . . Total Robot Build Rating . | . . . . . . . . . . . . . . . . . Part Schematics Acquired . | . . . . . . . . . . . . . . . . . Parts Built . | . . . . . . . . . . . . . . . . . Authchips . | . . . . . . . . . . . . . . . . . Time . | . . . . . . . . . . . . . . . . . Total Part Build Rating . | . . . . . . . . . . . . . . . . . Parts Repaired . | . . . . . . . . . . . . . . . . . Time . | . . . . . . . . . . . . . . . . . Parts Recycled . | . . . . . . . . . . . . . . . . . Recycled Matter . | . . . . . . . . . . . . . . . . . Retrieved Matter . | . . . . . . . . . . . . . . . . . Retrieved Components . | . . . . . . . . . . . . . . . . . Parts Scanalyzed . | . . . . . . . . . . . . . . . . . Part Schematics Acquired . | . . . . . . . . . . . . . . . . . Parts Damaged . | . . . . . . . . . . . . . . . . . Bothacking | -11 -10 -9 -8 -7 -7 -6 -6 -5 -5 -5 -5 -4 -4 -4 -4 -3 ------------ Run | Yrd Mat Mat Mat Fac Sto Fac Ext Fac Upp Upp War Pro Fac Upp Upp Res Used RIF Installer . | . . . . . . . . . . . . . . . . . Robots Hacked . | . . . . . . . . . . . . . . . . . Non-combat . | . . . . . . . . . . . . . . . . . Combat . | . . . . . . . . . . . . . . . . . Robot Hacks Applied . | . . . . . . . . . . . . . . . . . Relay Couplers Released . | . . . . . . . . . . . . . . . . . Fabnet Peak Effective % . | . . . . . . . . . . . . . . . . . Robots Rewired 11 | . . . . . . . 11 . . . . . . . . . Allies Hacked 2 | . . . . . 1 . . 1 . . . . . . . . Hacks Repelled . | . . . . . . . . . . . . . . . . . Allies | -11 -10 -9 -8 -7 -7 -6 -6 -5 -5 -5 -5 -4 -4 -4 -4 -3 -------- Run | Yrd Mat Mat Mat Fac Sto Fac Ext Fac Upp Upp War Pro Fac Upp Upp Res Total Allies 32 | . . . . . 10 . 22 . . . . . . . . . Largest Group 11 | . . . . . 10 . 11 4 . . . . . . . . Highest-Rated Group 347 | . . . . . 173 . 347 129 . . . . . . . . Highest-Rated Ally 159 | . . . . . 29 . 159 39 . . . . . . . . Total Orders . | . . . . . . . . . . . . . . . . . Ally Attacks 272 | . . . . . 85 . 176 11 . . . . . . . . Total Damage 5304 | . . . . . 1057 . 4092 155 . . . . . . . . Kills 38 | . . . . . 9 . 29 . . . . . . . . . Allies Corrupted . | . . . . . . . . . . . . . . . . . Allies Melted 1 | . . . . . . . 1 . . . . . . . . . Intel | -11 -10 -9 -8 -7 -7 -6 -6 -5 -5 -5 -5 -4 -4 -4 -4 -3 ------- Run | Yrd Mat Mat Mat Fac Sto Fac Ext Fac Upp Upp War Pro Fac Upp Upp Res Active Infowar (turns) 6050 | 26 1243 356 584 507 731 276 649 731 415 298 17 69 133 12 . 3 Terrain 1687 | . . . . 503 731 276 177 . . . . . . . . . Traps 475 | . . . . . . . . . . 257 16 69 133 . . . Seismic 5287 | 26 1243 356 584 507 731 276 649 . 415 298 16 69 117 . . . Jamming 34 | . . . . . . . . 22 . . . . . 12 . . ECM 729 | . . . . . . . . 725 . . 1 . . . . 3 Robot Analysis Total . | . . . . . . . . . . . . . . . . . Derelict Logs Recovered 7 | . . . . . . . . . 2 1 . 1 . 3 . . Drone Launches . | . . . . . . . . . . . . . . . . . Drone Recoveries . | . . . . . . . . . . . . . . . . . Exploration | -11 -10 -9 -8 -7 -7 -6 -6 -5 -5 -5 -5 -4 -4 -4 -4 -3 ------------- Run | Yrd Mat Mat Mat Fac Sto Fac Ext Fac Upp Upp War Pro Fac Upp Upp Res Turns Passed 8697 | 126 1332 444 584 507 731 276 2055 796 446 298 478 69 140 187 50 178 Spaces Moved 7865 | 76 919 258 325 293 458 183 1077 596 1037 580 713 252 335 472 49 242 Core 280 | 2 . . . . . . 1 . . . . . . . 42 235 Treads 499 | . . . . . . . 491 8 . . . . . . . . Legs . | . . . . . . . . . . . . . . . . . Wheels 3095 | 74 919 258 325 293 458 183 585 . . . . . . . . . Hover . | . . . . . . . . . . . . . . . . . Flight 3991 | . . . . . . . . 588 1037 580 713 252 335 472 7 7 Fastest Speed 20 | 50 100 95 90 105 107 108 108 20 20 20 20 20 20 29 34 40 Average Speed 75 | 98 108 96 104 106 111 117 142 125 20 20 20 20 21 37 90 65 Slowest Speed 1050 | 100 115 110 116 120 120 123 1050 166 20 20 93 20 29 100 100 100 Overloaded Moves . | . . . . . . . . . . . . . . . . . Propulsion Burnouts . | . . . . . . . . . . . . . . . . . Robots Hopped 2 | . . . . . . . . 1 . . . . . 1 . . Potential Cave-ins . | . . . . . . . . . . . . . . . . . Cave-ins Triggered . | . . . . . . . . . . . . . . . . . Exploration Rate (%) 44 | 6 99 25 41 8 57 5 97 11 94 74 94 48 8 75 9 12 Regions Visited 16 Branch Regions 8 Pre-discovered Areas 1 | . . . . . . . . . . . . . . 1 . . Known Exits Taken 2 | . . . . . . . . . . . . 1 . . 1 . Unknown Exits Taken 14 | 1 1 1 1 1 1 1 1 1 1 1 1 . 1 1 . . Scrap Searched 8 | . . . . . . . . . 2 1 . 3 . 1 1 . Spaces Dug 60 | . 3 . 17 . . . . 2 . . . . . . . 38 Terrain Destroyed 122 | . 3 . 17 . . . 24 12 . . . . . . . 66 Melee 2 | . . . . . . . . 2 . . . . . . . . Projectile . | . . . . . . . . . . . . . . . . . AOE 120 | . 3 . 17 . . . 24 10 . . . . . . . 66 Terrain Rammed . | . . . . . . . . . . . . . . . . . Walls Destroyed . | . . . . . . . . . . . . . . . . . Machines Disabled . | . . . . . . . . . . . . . . . . . Actions | -11 -10 -9 -8 -7 -7 -6 -6 -5 -5 -5 -5 -4 -4 -4 -4 -3 --------- Run | Yrd Mat Mat Mat Fac Sto Fac Ext Fac Upp Upp War Pro Fac Upp Upp Res Total 10128 | 110 1182 372 482 423 602 238 1540 644 1275 758 1044 269 403 476 52 258 Wait 1620 | . 189 41 63 82 68 40 333 20 235 174 291 16 68 . . . Move 7845 | 75 918 257 324 292 457 182 1076 593 1036 579 712 251 334 469 48 242 Hop 2 | . . . . . . . . 1 . . . . . 1 . . Pick Up 108 | 14 21 10 16 11 9 4 9 2 1 . 9 1 . . . 1 Fast Attach 28 | 3 . 3 1 . 3 2 5 . . 2 . . 1 1 1 6 Attach 60 | 4 7 8 7 5 2 2 2 11 . . 6 1 . 2 1 2 Detach 11 | . 2 . . . . . . 1 . . 3 . . 2 1 2 Swap 54 | . 4 7 10 1 11 1 15 1 2 . 2 . . . . . Drop 91 | 2 5 6 17 3 13 4 13 12 1 1 12 . . . . 2 Fire 229 | 12 36 40 44 29 35 3 26 1 . . . . . . . 3 Melee 8 | . . . . . 3 . 1 2 . . . . . 1 1 . Ram . | . . . . . . . . . . . . . . . . . Kick . | . . . . . . . . . . . . . . . . . Crush . | . . . . . . . . . . . . . . . . . Escape Stasis 8 | . . . . . . . 8 . . . . . . . . . Rewire 53 | . . . . . 1 . 52 . . . . . . . . . Trap . | . . . . . . . . . . . . . . . . . Miscellaneous 11 | . . . . . . . . . . 2 9 . . . . . Route ------- -11/Scrapyard -10/Materials (discovered 5 exits: [*Mat x3] / [*Min] / [*Sub]) -9/Materials -8/Materials -7/Factory -7/Storage -6/Factory -6/Extension (discovered 3 exits: *Fac x2 / [*Cet]) -5/Factory -5/Upper Caves -5/Upper Caves (discovered 2 exits: *Fac / *War) -5/Warlord -4/Proximity Caves -4/Factory (discovered 2 exits: Res / [*Upp]) -4/Upper Caves -4/Upper Caves -3/Research (discovered 1 exit: Res) History --------- Turn | Location | Event 17 | -11/Scrapyard | Discovered new exit (range 15) 127 | -11/Scrapyard | Entered Materials 335 | -10/Materials | Build established: Mutant 357 | -10/Materials | Discovered new exit (range 5) 673 | -10/Materials | Discovered new exit (range 9) 1173 | -10/Materials | Discovered new exit (range 16) 1293 | -10/Materials | Discovered new exit (range 7) 1385 | -10/Materials | Discovered new exit (range 13) 1459 | -10/Materials | Entered another Materials area 1459 | -9/Materials | Evolved 2 slots: Propulsion x1, Weapon x1 1862 | -9/Materials | Lost 3 parts (1p2n) 1873 | -9/Materials | Discovered new exit (range 6) 1893 | -9/Materials | Build established: Gunner 1903 | -9/Materials | Entered another Materials area 1903 | -8/Materials | Evolved 2 slots: Propulsion x1, Utility x1 2354 | -8/Materials | Garrison activated, responded to threat 2468 | -8/Materials | Discovered new exit (range 15) 2487 | -8/Materials | Entered Factory 2487 | -7/Factory | Evolved 2 slots: Utility x2 2893 | -7/Factory | Garrison activated, responded to threat 2968 | -7/Factory | Discovered new exit (range 5) 2994 | -7/Factory | Entered Storage 3055 | -7/Storage | Build established: Tank 3430 | -7/Storage | Assisted by bots powering up and referring to "LRC-V3" 3510 | -7/Storage | Discovered new exit (range 4) 3517 | -7/Storage | Lost 4 allies 3552 | -7/Storage | Garrison activated, responded to threat 3725 | -7/Storage | Entered Factory 3725 | -6/Factory | Evolved 2 slots: Utility x2 3734 | -6/Factory | Lost 5 allies 3998 | -6/Factory | Discovered new exit (range 5) 4001 | -6/Factory | Entered Extension 4145 | -6/Extension | Rescued a captive Derelict 4146 | -6/Extension | Rescued a captive Derelict 4208 | -6/Extension | Rescued A7 4646 | -6/Extension | Rescued a captive Derelict 4682 | -6/Extension | Build established: Hacker-Tank 4700 | -6/Extension | Spotted B-75 Beast 4850 | -6/Extension | Rescued a captive Derelict 4851 | -6/Extension | Rescued a captive Derelict 5223 | -6/Extension | Spotted B-75 Beast 5241 | -6/Extension | Allies destroyed B-75 Beast 5247 | -6/Extension | Extracted ID and sensor layout for unrecognized location from A7's data core 5277 | -6/Extension | Discovered new exit (range 3) 5408 | -6/Extension | Rescued a captive Derelict 5452 | -6/Extension | Rescued a captive Derelict 5513 | -6/Extension | Lost 3 allies 5585 | -6/Extension | Rescued a captive Derelict 5587 | -6/Extension | Rescued a captive Derelict 5705 | -6/Extension | Rescued a captive Derelict 5768 | -6/Extension | Discovered new exit (range 10) 5769 | -6/Extension | Discovered new exit (range 6) 5831 | -6/Extension | Lost 4 allies 6056 | -6/Extension | Entered Factory 6056 | -5/Factory | Accompanied by 4 allies 6056 | -5/Factory | Evolved 2 slots: Propulsion x2 6197 | -5/Factory | Discovered new exit (range 5) 6375 | -5/Factory | Build established: Hacker-Mutant 6806 | -5/Factory | Lost 3 allies 6852 | -5/Factory | Entered Upper Caves 7074 | -5/Upper Caves | Attracted the attention of an 0b10 checkpoint 7074 | -5/Upper Caves | Learned 8 Factory zone layouts 7170 | -5/Upper Caves | Build established: Scavenger-Sprinter 7175 | -5/Upper Caves | Learned 8 Factory zone layouts 7235 | -5/Upper Caves | Encountered a Warlord checkpoint 7287 | -5/Upper Caves | Discovered new exit (range 10) 7298 | -5/Upper Caves | Entered another Upper Caves area 7299 | -5/Upper Caves | Discovered new exit (range 6) 7300 | -5/Upper Caves | Attracted the attention of an 0b10 checkpoint 7324 | -5/Upper Caves | Found DCF Scrap (14 items) 7329 | -5/Upper Caves | Learned Factory emergency access door positions 7595 | -5/Upper Caves | Discovered new exit (range 5) 7596 | -5/Upper Caves | Entered Warlord 7630 | -5/Warlord | Visited the Vortex Lab 7639 | -5/Warlord | Found Prototype Launcher 7641 | -5/Warlord | Identified Vortex Catalyst Activator 7653 | -5/Warlord | Warlord's base attacked by MAIN.C 7714 | -5/Warlord | Found Prototype Hackware 7952 | -5/Warlord | Identified System Mapper 7958 | -5/Warlord | Found Prototype Device 8003 | -5/Warlord | Warlord forces counterattacked 8005 | -5/Warlord | Identified System Purifier 8023 | -5/Warlord | Met Warlord 8055 | -5/Warlord | Spotted Executioner 8055 | -5/Warlord | Spotted Executioner 8068 | -5/Warlord | Opened side exit 8072 | -5/Warlord | Discovered new exit (range 9) 8074 | -5/Warlord | Entered Proximity Caves 8090 | -4/Proximity Caves | Lost 3 allies 8128 | -4/Proximity Caves | Identified exit to Factory 8143 | -4/Proximity Caves | Entered Factory 8143 | -4/Factory | Evolved 2 slots: Power x1, Utility x1 8144 | -4/Factory | Identified exit to Research 8281 | -4/Factory | Discovered new exit (range 8) 8283 | -4/Factory | Entered Upper Caves 8306 | -4/Upper Caves | Build established: Hacker-Sprinter 8307 | -4/Upper Caves | Lost 6 parts (1p2n2u1w) 8334 | -4/Upper Caves | Attracted the attention of an 0b10 checkpoint 8358 | -4/Upper Caves | Learned location of 1 exit from Research 8373 | -4/Upper Caves | Lost 5 parts (2n3u) 8374 | -4/Upper Caves | Learned Research garrison access intel 8431 | -4/Upper Caves | Ambushed by wild Derelicts 8465 | -4/Upper Caves | Discovered new exit (range 15) 8470 | -4/Upper Caves | Entered another Upper Caves area 8485 | -4/Upper Caves | Discovered exit to Research (range 10) 8486 | -4/Upper Caves | Acquired the password to a Derelict Tinkerer's latest research 8520 | -4/Upper Caves | Entered Research 8520 | -3/Research | Evolved 2 slots: Utility x2 8521 | -3/Research | Identified exit to Research 8522 | -3/Research | Loaded intel: 3 garrison access locations 8611 | -3/Research | Core integrity fell below 50% 8625 | -3/Research | Lost 4 parts (2n2u) 8661 | -3/Research | Build established: Mutant 8668 | -3/Research | Core integrity fell below 20% 8698 | -3/Research | Destroyed by H-77 Assassin with Coil Gun Last Messages --------------- 08677_ Penetrated by Slug. 08678_ Slug penetrates Wall. 08678_ Penetrated by Slug. 08678_ Slug penetrates Wall. 08685_ Slug penetrates Y-72 Warden. 08685_ Slug penetrates Wall. 08687_ ALERT: Hostiles spotted, dispatching reinforcements to Terminal R002. 08691_ Slug penetrates Wall. 08691_ Acquired Vortex Catalyst Activator. 08692_ Slug penetrates Wall. 08693_ Destroyed Visual Processing Unit. 08693_ Drone destroyed. 08694_ Slug penetrates Wall. 08694_ Penetrated by Slug. 08694_ Y-72 Warden destroyed. 08695_ Slug penetrates Wall. 08695_ H-77 Assassin destroyed. 08698_ Penetrated by Slug. 08698_ Slug penetrates Wall. Map ----- +----------------------------------------------------+ | ?????????????????????????????? | | ?????????????????????????????? | | ? ?????????????????????????? | | ?????????????????????????? | | ?????????????????????????? | | ?????????????????????????? | | ?????????????????????????? | | ??????????########???????? | | #?????????# #???????? | | #?????????# #???????? | | #?????????# #???????? | | ########### #???????? | | # ] # #???????? | | # # #???????? | | # """" = ####+###???????? | | # """" ## ##??????? | | + """"" ;; ; ??????? | | # """" ; ;;####### | | # ;; ;; # | | # ;; ;; # | | #########;;;;; # | | #?????? % # | | #?????? # | | #????? h # | | #??????"" # | | #??????"" %; @! # | | #??????" ; ! # | | #????? ; # | | #?????? % # | | ########;;;;; # | | h # | | % % ; # | | ;####### | | #??????? | | "####+#######;;;;;;;;;#??????? | | "#????????????# ##???????? | | "#????????????#### #?????????? | | #???????????????##??????????? | | #???????????????????????????? | | #???????????????????????????? | | #???????????????????????????? | | #???????????????????????????? | | #???????????????????????????? | | #???????????????????????????? | | #???????????????????????????? | | #???????????????????????????? | | +???????????????????????????? | | ?????????????????????????????? | | ?????????????????????????????? | | ?????????????????????????????? | +----------------------------------------------------+ Best States ------------- Heat Dissipation 78 Energy Generation 23 Energy Capacity 500 Matter Stores 300 Matter Capacity 300 Sight Range 16 Terrain Scan Range 16 Terrain Scan Density 10 ECM Strength 1 Jamming Range 14 Armor Coverage 450 Resistance: KI 30 Utility Shielding 66 Evasion (%) 66 Recoil Reduction 4 Offensive Hacking 30 Defensive Hacking 22 Item Schematics ----------------- None Robot Schematics ------------------ None Fabricated ------------ Nothing Repaired ---------- Nothing Alien Tech Used ----------------- None Achievements -------------- Prison Break Challenges ------------ None Game ------ Seed AlloyHelicalBroadsword Manual? 0 Play Time 01:58:45 Cumulative 57.9 hours Start 2025.10.11 @ 23:14:30 End 2025.10.12 @ 01:20:23 Sessions 1 Manual Loads 0 Difficulty Rogue Special Mode None Game No. 53 Rogue 53 Adventurer 0 Explorer 0 Win Type - Total 0 Types 0/0/0/0/0/0/0/0/0/0 Lore% 16 Gallery% 34 Achievement% 31 Wizard Run 0 Options --------- Layout 1 ASCII 0 Keyboard 0 Movement Mouse Keybinds 0 Fullscreen 1 Font 24/Smallcaps Map View 50x35 Zoom Use 1% Tactical HUD 1 Map Filters NONE Filters NONE Steam 1 RUN: 8c783faf-af75-4fa7-8357-67acd0e0dae9